[Event "CCT Chessable Masters Place D-III 2024"]
[Site "Online"]
[Date "2024.02.01"]
[Round "1"]
[White "Ohanyan, Emin"]
[Black "stSecond"]
[Result "0-1"]
[ECO "D02"]
[WhiteElo "2456"]
[BlackElo "2547"]
[Annotator "ChessBase"]
[PlyCount "112"]
[EventDate "2024.01.12"]
[EventType "k.o."]
[EventCountry "NET"]
[SourceTitle "playchess.com"]
[Source "ChessBase"]
[SourceQuality "1"]
[TimeControl "600+2"]

1. d4 {[%emt 0:00:02]} Nf6 {[%emt 0:00:04]} 2. Nf3 {[%emt 0:00:01]} e6 {[%emt 0:00:02]} 3. Bf4 {[%emt 0:00:02]} c5 {[%emt 0:00:17]} 4. e3 {[%emt 0:00:01]} Nc6 {[%emt 0:00:03]} 5. Nbd2 {[%emt 0:00:02]} d5 {[%emt 0:00:01]} 6. c3 {[%emt 0:00:01]} Nh5 {[%emt 0:00:01]} 7. Bg5 {[%emt 0:00:03]} Qb6 {[%emt 0:00:01]} 8. Qb3 {[%emt 0:01:03]} h6 {[%emt 0:00:03]} 9. Bh4 {[%emt 0:00:02]} g5 {[%emt 0:00:00]} 10. Bg3 {[%emt 0:00:03]} Nxg3 {[%emt 0:00:01]} 11. hxg3 {[%emt 0:00:00]} Bg7 {[%emt 0:00:01]} 12. Qxb6 {[%emt 0:01:50]} axb6 {[%emt 0:00:02]} 13. a3 {[%emt 0:01:02]} g4 {[%emt 0:01:00]} 14. Ng1 {[%emt 0:00:01]} cxd4 {[%emt 0:00:42]} 15. exd4 {[%emt 0:00:16]} e5 {[%emt 0:00:06]} 16. dxe5 {[%emt 0:00:43]} d4 {[%emt 0:00:59]} 17. cxd4 {[%emt 0:02:11]} Nxd4 {[%emt 0:00:02]} 18. Rc1 {[%emt 0:00:01]} O-O {[%emt 0:01:58]} 19. f4 {[%emt 0:00:16]} Bf5 {[%emt 0:01:26]} 20. Ne2 {[%emt 0:00:33]} Nc2+ {[%emt 0:00:03]} 21. Kf2 {[%emt 0:00:01]} Rfd8 {[%emt 0:00:22]} 22. Nc4 {[%emt 0:00:13]} Bf8 {[%emt 0:00:18]} 23. Nd6 {[%emt 0:00:27]} Bxd6 {[%emt 0:00:15]} 24. exd6 {[%emt 0:00:00]} Rxd6 {[%emt 0:00:01]} 25. Rh5 {[%emt 0:00:05]} Bg6 {[%emt 0:00:42]} 26. Re5 {[%emt 0:01:06]} Ra5 {[%emt 0:00:53]} 27. Re8+ {[%emt 0:00:24]} Kg7 {[%emt 0:00:01]} 28. Nc3 {[%emt 0:00:00]} Rc6 {[%emt 0:00:54]} 29. Be2 {[%emt 0:00:13]} h5 {[%emt 0:00:06]} 30. Rd8 {[%emt 0:00:06]} Rac5 {[%emt 0:00:19]} 31. Na4 {[%emt 0:00:01]} Ra5 {[%emt 0:00:05]} 32. Nc3 {[%emt 0:00:00]} Re6 {[%emt 0:00:14]} 33. Nd1 {[%emt 0:00:14]} Rc5 {[%emt 0:00:02]} 34. Bd3 {[%emt 0:00:02]} Bxd3 {[%emt 0:00:02]} 35. Rxd3 {[%emt 0:00:00]} Nb4 {[%emt 0:00:02]} 36. axb4 {[%emt 0:00:07]} Rxc1 {[%emt 0:00:02]} 37. Ne3 {[%emt 0:00:01]} Rb1 {[%emt 0:00:01]} 38. Rd2 {[%emt 0:00:01]} Re4 {[%emt 0:00:02]} 39. Nd5 {[%emt 0:00:01]} b5 {[%emt 0:00:02]} 40. f5 {[%emt 0:00:02]} Ree1 {[%emt 0:00:03]} 41. Nf4 {[%emt 0:00:03]} Rf1+ {[%emt 0:00:01]} 42. Ke3 {[%emt 0:00:01]} Rbe1+ {[%emt 0:00:01]} 43. Kd4 {[%emt 0:00:01]} Kh6 {[%emt 0:00:01]} 44. Kc5 {[%emt 0:00:01]} Rd1 {[%emt 0:00:03]} 45. Re2 {[%emt 0:00:03]} Rfe1 {[%emt 0:00:01]} 46. Rf2 {[%emt 0:00:03]} Re5+ {[%emt 0:00:00]} 47. Kb6 {[%emt 0:00:00]} Rxf5 {[%emt 0:00:02]} 48. Kxb7 {[%emt 0:00:05]} Rd4 {[%emt 0:00:00]} 49. Rc2 {[%emt 0:00:01]} h4 {[%emt 0:00:04]} 50. Rc6+ {[%emt 0:00:03]} Kg7 {[%emt 0:00:03]} 51. Ne2 {[%emt 0:00:03]} Rd2 {[%emt 0:00:02]} 52. Nc3 {[%emt 0:00:03]} h3 {[%emt 0:00:02]} 53. Rc5 {[%emt 0:00:00]} Rxc5 {[%emt 0:00:02]} 54. bxc5 {[%emt 0:00:00]} h2 {[%emt 0:00:03]} 55. c6 {[%emt 0:00:01]} Rd8 {[%emt 0:00:01]} 56. c7 {[%emt 0:00:00]} Rf8 {[%emt 0:00:02]} 0-1